[Event "GER-ch Youth-U18w 2023"]
[Site "Willingen"]
[Date "2023.05.31"]
[Round "6.5"]
[White "Doll, Rebecca"]
[Black "Hafermann, Lara"]
[Result "0-1"]
[Annotator "NA RC"]
[ECO "B32"]
[WhiteElo "1918"]
[BlackElo "1498"]
[PlyCount "92"]
[EventDate "2022.06.05"]
[EventType "swiss"]
[EventRounds "9"]
[EventCountry "GER"]
[SourceTitle "playchess.com"]
[Source "ChessBase"]
[SourceQuality "1"]
[TimeControl "40/4500+30:900+30"]

1. e4 {[%emt 0:00:00]} c5 {[%emt 0:00:00]} 2. Nf3 {[%emt 0:00:00]} Nc6 {[%emt 0:00:00]} 3. d4 {[%emt 0:00:00]} cxd4 {[%emt 0:00:00]} 4. Nxd4 {[%emt 0:00:00]} e5 {[%emt 0:00:00]} 5. Nb5 {[%emt 0:00:00]} d6 {[%emt 0:00:00]} 6. N1c3 {[%emt 0:00:00]} a6 {[%emt 0:00:00]} 7. Na3 {[%emt 0:00:00]} Be7 {[%emt 0:00:00]} 8. Nc4 {[%emt 0:00:00]} b5 {[%emt 0:00:00]} 9. Ne3 {[%emt 0:00:00]} Nf6 {[%emt 0:00:00]} 10. a3 {[%emt 0:00:00]} O-O {[%emt 0:00:00]} 11. g3 {[%emt 0:00:00]} Be6 {[%emt 0:00:00]} 12. Bg2 {[%emt 0:00:00]} Qd7 {[%emt 0:11:49]} 13. O-O {[%emt 0:03:29]} Rfd8 {[%emt 0:04:00]} 14. f4 {[%emt 0:12:56]} Qb7 {[%emt 0:26:09]} 15. f5 {[%emt 0:04:06]} Bd7 {[%emt 0:00:52]} 16. Ncd5 {[%emt 0:04:53]} Nxd5 {[%emt 0:04:02]} 17. Nxd5 {[%emt 0:00:07]} f6 {[%emt 0:00:59]} 18. Be3 {[%emt 0:04:14]} Be8 {[%emt 0:01:38]} 19. Qd2 {[%emt 0:09:57]} Bf7 {[%emt 0:06:00]} 20. Rfc1 {[%emt 0:04:00]} Bf8 {[%emt 0:02:47]} 21. c4 {[%emt 0:05:01]} Ne7 {[%emt 0:03:38]} 22. Nb6 {[%emt 0:06:32]} Rab8 {[%emt 0:02:12]} 23. b3 {[%emt 0:02:48]} Nc8 {[%emt 0:01:12]} 24. Nd5 {[%emt 0:01:24]} Ne7 {[%emt 0:00:45]} 25. Rc2 {[%emt 0:02:04]} bxc4 {[%emt 0:02:44]} 26. bxc4 {[%emt 0:00:09]} Nxd5 {[%emt 0:01:24]} 27. cxd5 {[%emt 0:00:26]} Rdc8 {[%emt 0:00:26]} 28. Rac1 {[%emt 0:01:35]} Be8 {[%emt 0:01:11]} 29. Rc3 {[%emt 0:09:08]} Be7 {[%emt 0:02:37]} 30. Bf1 {[%emt 0:02:55]} Bd8 {[%emt 0:00:56]} 31. Kg2 {[%emt 0:02:09]} Ba5 {[%emt 0:02:01]} 32. Rxc8 {[%emt 0:10:49]} Bxd2 {[%emt 0:00:30]} 33. Rxb8 {[%emt 0:00:08]} Qxb8 {[%emt 0:00:18]} 34. Bxd2 {[%emt 0:00:05]} Qb2 {[%emt 0:00:15]} 35. Rc8 {[%emt 0:02:02]} Qxd2+ {[%emt 0:00:10]} 36. Kh3 {[%emt 0:00:37]} Kf7 {[%emt 0:00:55]} 37. Bxa6 {[%emt 0:00:49]} Qd4 {[%emt 0:01:56]} 38. Rc7+ {[%emt 0:00:56]} Kf8 {[%emt 0:00:15]} 39. Bc8 {[%emt 0:00:35]} Qxe4 {[%emt 0:00:50]} 40. Be6 {[%emt 0:00:10]} Qa4 {[%emt 0:01:12]} 41. Rc8 {[%emt 0:15:49]} Qa7 {[%emt 0:19:28]} 42. Kg2 {[%emt 0:00:00]} Ke7 {[%emt 0:00:00]} 43. h4 {[%emt 0:00:00]} Qb7 {[%emt 0:00:00]} 44. Kh3 {[%emt 0:00:00]} Bd7 {[%emt 0:00:00]} 45. Rg8 {[%emt 0:00:00]} Bxe6 {[%emt 0:00:00]} 46. fxe6 {[%emt 0:00:00]} Qxd5 {[%emt 0:01:35]} 0-1

[Event "GER-ch Youth-U18w 2023"]
[Site "Willingen"]
[Date "2023.05.31"]
[Round "6.6"]
[White "Reuter, Elisa"]
[Black "Kieckbusch, Lotta"]
[Result "1-0"]
[Annotator "NA RC"]
[ECO "B01"]
[WhiteElo "1944"]
[BlackElo "1308"]
[PlyCount "59"]
[EventDate "2022.06.05"]
[EventType "swiss"]
[EventRounds "9"]
[EventCountry "GER"]
[SourceTitle "playchess.com"]
[Source "ChessBase"]
[SourceQuality "1"]
[TimeControl "40/4500+30:900+30"]

1. e4 {[%emt 0:00:00]} d5 {[%emt 0:00:00]} 2. exd5 {[%emt 0:00:00]} Qxd5 {[%emt 0:00:00]} 3. Nc3 {[%emt 0:00:00]} Qd6 {[%emt 0:00:00]} 4. d4 {[%emt 0:00:00]} g6 {[%emt 0:00:00]} 5. Nf3 {[%emt 0:00:00]} Bg7 {[%emt 0:00:00]} 6. Nb5 {[%emt 0:00:00]} Qd8 {[%emt 0:00:00]} 7. a4 {[%emt 0:00:00]} a6 {[%emt 0:00:00]} 8. Na3 {[%emt 0:00:00]} a5 {[%emt 0:00:00]} 9. c3 {[%emt 0:00:00]} Bg4 {[%emt 0:07:05]} 10. h3 {[%emt 0:00:00]} Bf5 {[%emt 0:04:42]} 11. Nc4 {[%emt 0:00:00]} Nf6 {[%emt 0:02:31]} 12. Nce5 {[%emt 0:05:40]} Nd5 {[%emt 0:06:13]} 13. Bc4 {[%emt 0:01:50]} c6 {[%emt 0:06:42]} 14. Qb3 {[%emt 0:03:43]} Qc8 {[%emt 0:13:01]} 15. Bxd5 {[%emt 0:02:05]} cxd5 {[%emt 0:00:14]} 16. Qxd5 {[%emt 0:01:01]} Be6 {[%emt 0:02:11]} 17. Qb5+ {[%emt 0:01:56]} Nd7 {[%emt 0:01:18]} 18. Ng5 {[%emt 0:02:55]} Bxe5 {[%emt 0:03:57]} 19. Nxe6 {[%emt 0:02:27]} Bf6 {[%emt 0:04:50]} 20. Nc5 {[%emt 0:00:39]} b6 {[%emt 0:00:30]} 21. Nxd7 {[%emt 0:01:38]} Qxd7 {[%emt 0:00:35]} 22. Qxd7+ {[%emt 0:02:47]} Kxd7 {[%emt 0:00:11]} 23. Be3 {[%emt 0:02:06]} Rac8 {[%emt 0:02:57]} 24. Kd2 {[%emt 0:03:24]} Rhd8 {[%emt 0:00:53]} 25. Ke2 {[%emt 0:03:58]} Kc6 {[%emt 0:02:40]} 26. Rhd1 {[%emt 0:03:28]} Kb7 {[%emt 0:00:35]} 27. Rac1 {[%emt 0:01:02]} e6 {[%emt 0:01:00]} 28. b3 {[%emt 0:02:11]} Bg7 {[%emt 0:04:09]} 29. c4 {[%emt 0:02:09]} Bf8 {[%emt 0:01:40]} 30. d5 {[%emt 0:04:21]} 1-0

[Event "GER-ch Youth-U18w 2023"]
[Site "Willingen"]
[Date "2023.05.31"]
[Round "6.7"]
[White "Werner, Rosalie"]
[Black "Kalina, Lena"]
[Result "1/2-1/2"]
[Annotator "NA RC"]
[ECO "B36"]
[WhiteElo "1751"]
[BlackElo "1776"]
[PlyCount "97"]
[EventDate "2022.06.05"]
[EventType "swiss"]
[EventRounds "9"]
[EventCountry "GER"]
[SourceTitle "playchess.com"]
[Source "ChessBase"]
[SourceQuality "1"]
[TimeControl "40/4500+30:900+30"]

1. e4 {[%emt 0:00:00]} c5 {[%emt 0:00:00]} 2. Nf3 {[%emt 0:00:00]} Nc6 {[%emt 0:00:00]} 3. d4 {[%emt 0:00:00]} cxd4 {[%emt 0:00:00]} 4. Nxd4 {[%emt 0:00:00]} g6 {[%emt 0:00:00]} 5. c4 {[%emt 0:00:00]} Nf6 {[%emt 0:00:00]} 6. Nc3 {[%emt 0:00:00]} Nxd4 {[%emt 0:00:00]} 7. Qxd4 {[%emt 0:00:00]} d6 {[%emt 0:00:00]} 8. Be3 {[%emt 0:00:00]} Bg7 {[%emt 0:00:00]} 9. f3 {[%emt 0:00:00]} O-O {[%emt 0:00:00]} 10. Qd2 {[%emt 0:00:00]} a5 {[%emt 0:00:00]} 11. Be2 {[%emt 0:03:38]} a4 {[%emt 0:00:00]} 12. O-O {[%emt 0:04:50]} Qa5 {[%emt 0:00:00]} 13. Rab1 {[%emt 0:05:28]} Be6 {[%emt 0:03:49]} 14. Rfc1 {[%emt 0:10:49]} Rfc8 {[%emt 0:05:33]} 15. Nb5 {[%emt 0:03:38]} Qxd2 {[%emt 0:04:02]} 16. Bxd2 {[%emt 0:00:12]} Nd7 {[%emt 0:03:30]} 17. Be3 {[%emt 0:03:48]} Ne5 {[%emt 0:06:50]} 18. b3 {[%emt 0:02:57]} Nc6 {[%emt 0:09:32]} 19. Kf1 {[%emt 0:06:20]} a3 {[%emt 0:23:42]} 20. Bd2 {[%emt 0:07:17]} f5 {[%emt 0:06:36]} 21. Bd3 {[%emt 0:04:19]} Bb2 {[%emt 0:03:31]} 22. Rd1 {[%emt 0:04:35]} Ne5 {[%emt 0:00:46]} 23. Ke2 {[%emt 0:02:29]} Bd7 {[%emt 0:06:07]} 24. Bc3 {[%emt 0:04:53]} Bxc3 {[%emt 0:01:58]} 25. Nxc3 {[%emt 0:00:07]} e6 {[%emt 0:05:27]} 26. Rbc1 {[%emt 0:05:04]} Kf7 {[%emt 0:00:45]} 27. f4 {[%emt 0:06:53]} Ng4 {[%emt 0:03:14]} 28. h3 {[%emt 0:00:43]} Nf6 {[%emt 0:00:11]} 29. Bb1 {[%emt 0:01:26]} Ke7 {[%emt 0:00:36]} 30. Ke3 {[%emt 0:05:09]} Bc6 {[%emt 0:01:03]} 31. g3 {[%emt 0:01:48]} Ra5 {[%emt 0:02:17]} 32. Bd3 {[%emt 0:03:04]} fxe4 {[%emt 0:01:19]} 33. Bxe4 {[%emt 0:00:44]} Bxe4 {[%emt 0:00:29]} 34. Nxe4 {[%emt 0:00:10]} Nxe4 {[%emt 0:00:15]} 35. Kxe4 {[%emt 0:00:06]} Rac5 {[%emt 0:00:28]} 36. Kd4 {[%emt 0:01:53]} b5 {[%emt 0:00:18]} 37. Re1 {[%emt 0:00:46]} bxc4 {[%emt 0:00:42]} 38. Rxc4 {[%emt 0:00:33]} Rd5+ {[%emt 0:00:43]} 39. Kc3 {[%emt 0:00:27]} Rxc4+ {[%emt 0:00:43]} 40. bxc4 {[%emt 0:00:33]} Rh5 {[%emt 0:00:20]} 41. h4 {[%emt 0:00:00]} Rc5 {[%emt 0:00:00]} 42. Kb4 {[%emt 0:00:00]} h6 {[%emt 0:00:00]} 43. Re4 {[%emt 0:00:00]} g5 {[%emt 0:00:00]} 44. hxg5 {[%emt 0:00:00]} hxg5 {[%emt 0:00:00]} 45. Kxa3 {[%emt 0:00:00]} gxf4 {[%emt 0:00:00]} 46. Rxf4 {[%emt 0:03:08]} Rg5 {[%emt 0:00:00]} 47. Rf3 {[%emt 0:07:16]} Rg4 {[%emt 0:00:00]} 48. Kb3 {[%emt 0:01:49]} Kd7 {[%emt 0:00:05]} 49. a4 {[%emt 0:03:38]} 1/2-1/2

[Event "GER-ch Youth-U18w 2023"]
[Site "Willingen"]
[Date "2023.05.31"]
[Round "6.8"]
[White "Zoellner, Bente"]
[Black "Petersen, Sophie"]
[Result "0-1"]
[Annotator "NA RC"]
[ECO "D61"]
[WhiteElo "1700"]
[BlackElo "1763"]
[PlyCount "63"]
[EventDate "2022.06.05"]
[EventType "swiss"]
[EventRounds "9"]
[EventCountry "GER"]
[SourceTitle "playchess.com"]
[Source "ChessBase"]
[SourceQuality "1"]
[TimeControl "40/4500+30:900+30"]

1. d4 {[%emt 0:00:00]} d5 {[%emt 0:00:00]} 2. Nf3 {[%emt 0:00:00]} e6 {[%emt 0:00:00]} 3. c4 {[%emt 0:00:00]} a6 {[%emt 0:00:00]} 4. cxd5 {[%emt 0:00:00]} exd5 {[%emt 0:00:00]} 5. Nc3 {[%emt 0:00:00]} Nf6 {[%emt 0:00:00]} 6. Bg5 {[%emt 0:00:00]} Be7 {[%emt 0:00:00]} 7. e3 {[%emt 0:00:00]} Nbd7 {[%emt 0:00:00]} 8. Bd3 {[%emt 0:00:00]} O-O {[%emt 0:00:00]} 9. O-O {[%emt 0:00:00]} Re8 {[%emt 0:00:00]} 10. Qc2 {[%emt 0:00:00]} c6 {[%emt 0:00:00]} 11. a4 {[%emt 0:00:00]} Nf8 {[%emt 0:03:43]} 12. Nd2 {[%emt 0:00:00]} Be6 {[%emt 0:06:41]} 13. f3 {[%emt 0:00:00]} Rc8 {[%emt 0:01:32]} 14. Rab1 {[%emt 0:06:00]} c5 {[%emt 0:03:21]} 15. dxc5 {[%emt 0:01:07]} Bxc5 {[%emt 0:00:24]} 16. Nb3 {[%emt 0:04:46]} Ba7 {[%emt 0:03:15]} 17. Nd4 {[%emt 0:01:46]} h6 {[%emt 0:07:12]} 18. Bh4 {[%emt 0:02:18]} N8d7 {[%emt 0:04:30]} 19. Qd2 {[%emt 0:04:06]} Ne5 {[%emt 0:04:50]} 20. Bc2 {[%emt 0:05:00]} Nc4 {[%emt 0:07:15]} 21. Qd3 {[%emt 0:02:25]} Nxe3 {[%emt 0:13:09]} 22. Qxe3 {[%emt 0:09:58]} Bf5 {[%emt 0:01:58]} 23. Qd2 {[%emt 0:02:04]} Bxc2 {[%emt 0:01:28]} 24. Qxc2 {[%emt 0:00:42]} Bxd4+ {[%emt 0:00:22]} 25. Kh1 {[%emt 0:00:36]} Qa5 {[%emt 0:05:37]} 26. Rfc1 {[%emt 0:02:50]} Be3 {[%emt 0:02:01]} 27. b4 {[%emt 0:04:36]} Qc7 {[%emt 0:02:49]} 28. Bxf6 {[%emt 0:03:20]} Bxc1 {[%emt 0:01:05]} 29. Rxc1 {[%emt 0:00:30]} gxf6 {[%emt 0:00:17]} 30. Qd2 {[%emt 0:00:45]} Qe5 {[%emt 0:02:13]} 31. h3 {[%emt 0:00:57]} Rc4 {[%emt 0:02:14]} 32. f4 {[%emt 0:03:28]} 0-1

[Event "GER-ch Youth-U18w 2023"]
[Site "Willingen"]
[Date "2023.05.31"]
[Round "6.9"]
[White "Derling, Charlotte"]
[Black "Glowiak, Alexandra"]
[Result "1-0"]
[Annotator "NA RC"]
[ECO "C54"]
[WhiteElo "1664"]
[BlackElo "1660"]
[PlyCount "101"]
[EventDate "2022.06.05"]
[EventType "swiss"]
[EventRounds "9"]
[EventCountry "GER"]
[SourceTitle "playchess.com"]
[Source "ChessBase"]
[SourceQuality "1"]
[TimeControl "40/4500+30:900+30"]

1. e4 {[%emt 0:00:00]} e5 {[%emt 0:00:00]} 2. Nf3 {[%emt 0:00:00]} Nc6 {[%emt 0:00:00]} 3. Bc4 {[%emt 0:00:00]} Bc5 {[%emt 0:00:00]} 4. c3 {[%emt 0:00:00]} Nf6 {[%emt 0:00:00]} 5. d4 {[%emt 0:00:00]} exd4 {[%emt 0:00:00]} 6. e5 {[%emt 0:00:00]} d5 {[%emt 0:00:00]} 7. Bb5 {[%emt 0:00:00]} Ne4 {[%emt 0:00:00]} 8. cxd4 {[%emt 0:00:00]} Bb4+ {[%emt 0:00:00]} 9. Bd2 {[%emt 0:00:00]} Nxd2 {[%emt 0:00:00]} 10. Nbxd2 {[%emt 0:00:00]} Bd7 {[%emt 0:00:00]} 11. O-O {[%emt 0:00:00]} O-O {[%emt 0:06:09]} 12. Bxc6 {[%emt 0:05:55]} Bxc6 {[%emt 0:06:08]} 13. a3 {[%emt 0:03:44]} Be7 {[%emt 0:06:28]} 14. Rc1 {[%emt 0:02:43]} Bb5 {[%emt 0:11:26]} 15. Re1 {[%emt 0:01:40]} b6 {[%emt 0:01:47]} 16. Qb3 {[%emt 0:11:40]} Ba6 {[%emt 0:00:56]} 17. Qa4 {[%emt 0:02:46]} Bb7 {[%emt 0:15:51]} 18. b4 {[%emt 0:02:54]} c6 {[%emt 0:01:49]} 19. Rc3 {[%emt 0:15:51]} Qd7 {[%emt 0:01:41]} 20. Qc2 {[%emt 0:07:32]} a5 {[%emt 0:09:38]} 21. e6 {[%emt 0:12:24]} fxe6 {[%emt 0:07:13]} 22. Ne5 {[%emt 0:00:49]} Qd6 {[%emt 0:01:19]} 23. Rh3 {[%emt 0:05:12]} h6 {[%emt 0:00:19]} 24. Rxh6 {[%emt 0:03:53]} Rf5 {[%emt 0:00:37]} 25. g4 {[%emt 0:02:20]} gxh6 {[%emt 0:01:44]} 26. gxf5 {[%emt 0:00:13]} exf5 {[%emt 0:01:53]} 27. Qxf5 {[%emt 0:02:04]} Qf6 {[%emt 0:03:33]} 28. Qd7 {[%emt 0:03:06]} Bc8 {[%emt 0:06:46]} 29. Qe8+ {[%emt 0:00:12]} Qf8 {[%emt 0:01:37]} 30. Qxc6 {[%emt 0:01:40]} Bf5 {[%emt 0:02:05]} 31. Qxd5+ {[%emt 0:01:16]} Kh7 {[%emt 0:00:19]} 32. Kh1 {[%emt 0:01:04]} Rd8 {[%emt 0:01:03]} 33. Qc4 {[%emt 0:00:45]} Bc8 {[%emt 0:01:01]} 34. Qd3+ {[%emt 0:01:12]} Bf5 {[%emt 0:00:10]} 35. Qc4 {[%emt 0:00:26]} Bc8 {[%emt 0:00:11]} 36. Qc6 {[%emt 0:00:32]} Rd6 {[%emt 0:00:31]} 37. Qc2+ {[%emt 0:00:54]} Bf5 {[%emt 0:00:17]} 38. Qc4 {[%emt 0:00:29]} Qa8+ {[%emt 0:00:56]} 39. f3 {[%emt 0:00:21]} Qf8 {[%emt 0:00:31]} 40. Rg1 {[%emt 0:00:41]} Bg5 {[%emt 0:00:40]} 41. Ne4 {[%emt 0:00:00]} Bxe4 {[%emt 0:00:00]} 42. fxe4 {[%emt 0:00:00]} Qe7 {[%emt 0:00:00]} 43. Rf1 {[%emt 0:00:00]} Rf6 {[%emt 0:00:00]} 44. Rxf6 {[%emt 0:00:30]} Bxf6 {[%emt 0:00:00]} 45. Qb5 {[%emt 0:07:19]} Qc7 {[%emt 0:00:00]} 46. Nc6 {[%emt 0:06:35]} axb4 {[%emt 0:03:18]} 47. axb4 {[%emt 0:00:23]} Kg7 {[%emt 0:02:42]} 48. e5 {[%emt 0:01:51]} Bg5 {[%emt 0:00:43]} 49. d5 {[%emt 0:00:40]} Qf7 {[%emt 0:01:04]} 50. Qd3 {[%emt 0:00:50]} Qf2 {[%emt 0:02:07]} 51. Qd1 {[%emt 0:01:52]} 1-0

[Event "GER-ch Youth-U18w 2023"]
[Site "Willingen"]
[Date "2023.05.31"]
[Round "6.11"]
[White "Gossing, Marie-Sophie"]
[Black "Dohon, Maria-Johanna"]
[Result "0-1"]
[Annotator "NA RC"]
[ECO "B21"]
[WhiteElo "1395"]
[BlackElo "1507"]
[PlyCount "90"]
[EventDate "2022.06.05"]
[EventType "swiss"]
[EventRounds "9"]
[EventCountry "GER"]
[SourceTitle "playchess.com"]
[Source "ChessBase"]
[SourceQuality "1"]
[TimeControl "40/4500+30:900+30"]

1. e4 {[%emt 0:00:00]} c5 {[%emt 0:00:00]} 2. d4 {[%emt 0:00:00]} cxd4 {[%emt 0:00:00]} 3. c3 {[%emt 0:00:00]} dxc3 {[%emt 0:00:00]} 4. Nxc3 {[%emt 0:00:00]} Nc6 {[%emt 0:00:00]} 5. Nf3 {[%emt 0:00:00]} e6 {[%emt 0:00:00]} 6. Bc4 {[%emt 0:00:00]} a6 {[%emt 0:00:00]} 7. Qe2 {[%emt 0:00:00]} d6 {[%emt 0:00:00]} 8. h3 {[%emt 0:00:00]} Nge7 {[%emt 0:00:00]} 9. O-O {[%emt 0:00:00]} b5 {[%emt 0:00:00]} 10. Bb3 {[%emt 0:00:00]} Bb7 {[%emt 0:00:00]} 11. Rd1 {[%emt 0:00:00]} Ng6 {[%emt 0:00:00]} 12. Be3 {[%emt 0:17:50]} Be7 {[%emt 0:01:58]} 13. Rac1 {[%emt 0:03:07]} O-O {[%emt 0:01:09]} 14. Qe1 {[%emt 0:10:47]} Na5 {[%emt 0:02:44]} 15. Bc2 {[%emt 0:03:56]} Nc4 {[%emt 0:02:06]} 16. b3 {[%emt 0:03:28]} Nxe3 {[%emt 0:00:36]} 17. Qxe3 {[%emt 0:00:11]} Rc8 {[%emt 0:04:12]} 18. Ne2 {[%emt 0:06:21]} Qa5 {[%emt 0:17:32]} 19. Ned4 {[%emt 0:11:20]} b4 {[%emt 0:09:45]} 20. Bb1 {[%emt 0:01:54]} h6 {[%emt 0:12:01]} 21. Ne2 {[%emt 0:10:11]} Rxc1 {[%emt 0:07:57]} 22. Rxc1 {[%emt 0:00:39]} Rc8 {[%emt 0:00:39]} 23. Rd1 {[%emt 0:01:35]} d5 {[%emt 0:06:01]} 24. e5 {[%emt 0:01:29]} Bc5 {[%emt 0:00:57]} 25. Qd2 {[%emt 0:01:18]} Nf8 {[%emt 0:00:52]} 26. Nfd4 {[%emt 0:02:34]} Qb6 {[%emt 0:02:16]} 27. Kh1 {[%emt 0:02:12]} a5 {[%emt 0:03:32]} 28. f4 {[%emt 0:02:37]} Ba6 {[%emt 0:02:26]} 29. Nc2 {[%emt 0:01:31]} Ng6 {[%emt 0:02:56]} 30. Ng3 {[%emt 0:02:25]} Bb5 {[%emt 0:05:10]} 31. Ne1 {[%emt 0:02:45]} Be3 {[%emt 0:00:58]} 32. Qb2 {[%emt 0:00:57]} Bxf4 {[%emt 0:00:58]} 33. Bxg6 {[%emt 0:00:34]} Bxg3 {[%emt 0:00:44]} 34. Nf3 {[%emt 0:01:09]} fxg6 {[%emt 0:00:25]} 35. Nd4 {[%emt 0:00:24]} Bxe5 {[%emt 0:00:39]} 36. Qf2 {[%emt 0:01:01]} Bxd4 {[%emt 0:01:08]} 37. Qxd4 {[%emt 0:00:14]} Qxd4 {[%emt 0:00:42]} 38. Rxd4 {[%emt 0:00:04]} Rc2 {[%emt 0:00:59]} 39. Rd1 {[%emt 0:00:37]} Rxa2 {[%emt 0:01:00]} 40. Rc1 {[%emt 0:00:08]} Rb2 {[%emt 0:01:11]} 41. Rc5 {[%emt 0:15:17]} Bf1 {[%emt 0:16:43]} 42. Rxa5 {[%emt 0:01:02]} Rxb3 {[%emt 0:00:39]} 43. Kg1 {[%emt 0:01:47]} Bc4 {[%emt 0:00:00]} 44. Ra7 {[%emt 0:00:00]} Ra3 {[%emt 0:00:00]} 45. Re7 {[%emt 0:00:00]} b3 {[%emt 0:00:00]} 0-1

[Event "GER-ch Youth-U18w 2023"]
[Site "Willingen"]
[Date "2023.06.01"]
[Round "7.1"]
[White "Albayrak, Nese Pinar"]
[Black "Wagner, Margarethe"]
[Result "1/2-1/2"]
[Annotator "NA RC COMBH"]
[ECO "B92"]
[WhiteElo "1763"]
[BlackElo "1831"]
[PlyCount "62"]
[EventDate "2022.06.05"]
[EventType "swiss"]
[EventRounds "9"]
[EventCountry "GER"]
[SourceTitle "playchess.com"]
[Source "ChessBase"]
[SourceQuality "1"]
[TimeControl "40/4500+30:900+30"]

1. e4 {[%emt 0:00:00]} c5 {[%emt 0:00:00]} 2. Nf3 {[%emt 0:00:00]} d6 {[%emt 0:00:00]} 3. d4 {[%emt 0:00:00]} cxd4 {[%emt 0:00:00]} 4. Nxd4 {[%emt 0:00:00]} Nf6 {[%emt 0:00:00]} 5. Nc3 {[%emt 0:00:00]} a6 {[%emt 0:00:00]} 6. Be2 {[%emt 0:00:00]} e5 {[%emt 0:00:00]} 7. Nb3 {[%emt 0:00:00]} Be7 {[%emt 0:00:00]} 8. f4 {[%emt 0:00:00]} Nbd7 {[%emt 0:00:00]} 9. g4 {[%emt 0:00:00]} Nc5 {[%emt 0:05:25]} 10. Bf3 {[%emt 0:00:00]} Nxb3 {[%emt 0:03:37]} 11. axb3 {[%emt 0:03:49]} Nd7 {[%emt 0:04:25]} 12. g5 {[%emt 0:20:48]} exf4 {[%emt 0:05:36]} 13. Bxf4 {[%emt 0:00:05]} Ne5 {[%emt 0:01:34]} 14. Nd5 {[%emt 0:03:11]} Be6 {[%emt 0:02:20]} 15. Qe2 {[%emt 0:08:22]} Nxf3+ {[%emt 0:10:29]} 16. Qxf3 {[%emt 0:00:02]} Bxd5 {[%emt 0:04:02]} 17. exd5 {[%emt 0:00:03]} Bxg5 {[%emt 0:00:27]} 18. Qe3+ {[%emt 0:01:51]} Be7 {[%emt 0:02:28]} 19. Rg1 {[%emt 0:03:19]} O-O {[%emt 0:26:53]} 20. O-O-O {[%emt 0:02:20]} g6 {[%emt 0:02:53]} 21. Qg3 {[%emt 0:12:27]} Rc8 {[%emt 0:00:08]} 22. Rg2 {[%emt 0:04:42]} Bh4 {[%emt 0:01:07]} 23. Qg4 {[%emt 0:05:10]} Bf6 {[%emt 0:00:51]} 24. Qg3 {[%emt 0:00:44]} Bh4 {[%emt 0:01:13]} 25. Qg4 {[%emt 0:00:23]} Bf6 {[%emt 0:06:46]} 26. Re2 {[%emt 0:13:41]} Qb6 {[%emt 0:02:06]} 27. Kb1 {[%emt 0:01:27]} Qc5 {[%emt 0:01:31]} 28. Be3 {[%emt 0:01:44]} Qb5 {[%emt 0:00:55]} 29. Bf4 {[%emt 0:00:47]} Qc5 {[%emt 0:00:40]} 30. Be3 {[%emt 0:00:06]} Qb5 {[%emt 0:00:06]} 31. Bf4 {[%emt 0:00:26]} Qc5 {[%emt 0:01:11]} 1/2-1/2